[Event "Early-Titled-Tuesday-Blitz-December-26-2023"]
[Site "Chess.com"]
[Date "2023.12.26"]
[Round "4"]
[White "karinachess1"]
[Black "Giantgoogachess"]
[Result "0-1"]
[WhiteElo "2566"]
[BlackElo "2388"]
[TimeControl "180+1"]
[EndTime "8:39:07 PST"]
[Termination "Giantgoogachess won on time"]

1. d4 {[%clk 0:03:00.9]} 1... Nf6 {[%clk 0:02:57.5]} 2. c4 {[%clk 0:03:00.9]}
2... e6 {[%clk 0:02:57.4]} 3. Nc3 {[%clk 0:03:00.9]} 3... Bb4 {[%clk 0:02:57.1]}
4. a3 {[%clk 0:03:01.1]} 4... Bxc3+ {[%clk 0:02:57.1]} 5. bxc3 {[%clk 0:03:02]}
5... c5 {[%clk 0:02:57.2]} 6. e3 {[%clk 0:03:02.3]} 6... b6 {[%clk 0:02:57]} 7.
Bd3 {[%clk 0:03:02.6]} 7... Bb7 {[%clk 0:02:57.2]} 8. f3 {[%clk 0:03:03.1]} 8...
d6 {[%clk 0:02:49.7]} 9. Ne2 {[%clk 0:03:03.1]} 9... Qc7 {[%clk 0:02:50.2]} 10.
O-O {[%clk 0:03:03.1]} 10... Nc6 {[%clk 0:02:48.4]} 11. e4 {[%clk 0:02:58.9]}
11... Na5 {[%clk 0:02:48.5]} 12. d5 {[%clk 0:02:56.1]} 12... O-O-O {[%clk
0:02:38.7]} 13. Be3 {[%clk 0:02:40.4]} 13... h6 {[%clk 0:02:34.9]} 14. Nc1
{[%clk 0:02:38.6]} 14... e5 {[%clk 0:02:16]} 15. Nb3 {[%clk 0:02:35.8]} 15...
Nxb3 {[%clk 0:02:14.3]} 16. Qxb3 {[%clk 0:02:36.7]} 16... g5 {[%clk 0:02:11.2]}
17. a4 {[%clk 0:02:28.6]} 17... a5 {[%clk 0:02:10.9]} 18. Rab1 {[%clk
0:02:19.7]} 18... Nd7 {[%clk 0:02:10.4]} 19. Kf2 {[%clk 0:02:09.6]} 19... Kb8
{[%clk 0:02:09.6]} 20. Ke2 {[%clk 0:02:09.5]} 20... Ka7 {[%clk 0:02:09]} 21. Kd2
{[%clk 0:02:09.9]} 21... Ba6 {[%clk 0:02:08.4]} 22. Kc2 {[%clk 0:02:08.3]} 22...
Rdg8 {[%clk 0:02:00.5]} 23. Kb2 {[%clk 0:01:57.9]} 23... f6 {[%clk 0:01:53.9]}
24. Ka3 {[%clk 0:01:57.3]} 24... h5 {[%clk 0:01:53.6]} 25. Rf2 {[%clk
0:01:37.1]} 25... h4 {[%clk 0:01:52.2]} 26. Be2 {[%clk 0:01:21.6]} 26... Nf8
{[%clk 0:01:49.4]} 27. g3 {[%clk 0:01:10.3]} 27... hxg3 {[%clk 0:01:48.1]} 28.
hxg3 {[%clk 0:01:11.2]} 28... Rh3 {[%clk 0:01:48.2]} 29. Rg2 {[%clk 0:01:10]}
29... Rgh8 {[%clk 0:01:43]} 30. Rbg1 {[%clk 0:01:09.4]} 30... R8h7 {[%clk
0:01:20.6]} 31. Qc2 {[%clk 0:01:09.3]} 31... Bc8 {[%clk 0:01:15.9]} 32. Qd2
{[%clk 0:01:04.1]} 32... Qe7 {[%clk 0:00:49.2]} 33. Bd3 {[%clk 0:00:55.7]} 33...
Rg7 {[%clk 0:00:45.8]} 34. f4 {[%clk 0:00:49]} 34... Nh7 {[%clk 0:00:31]} 35.
Qf2 {[%clk 0:00:41.1]} 35... Kb8 {[%clk 0:00:20.8]} 36. Rh2 {[%clk 0:00:33.5]}
36... Rxh2 {[%clk 0:00:18.3]} 37. Qxh2 {[%clk 0:00:34.4]} 37... gxf4 {[%clk
0:00:18.6]} 38. gxf4 {[%clk 0:00:34.4]} 38... Rxg1 {[%clk 0:00:19.1]} 39. Qxg1
{[%clk 0:00:33.4]} 39... exf4 {[%clk 0:00:18.6]} 40. Bxf4 {[%clk 0:00:34]} 40...
Ng5 {[%clk 0:00:18.9]} 41. Qg3 {[%clk 0:00:28.6]} 41... Kc7 {[%clk 0:00:18.9]}
42. Qh4 {[%clk 0:00:25.4]} 42... Bd7 {[%clk 0:00:17.5]} 43. Qh8 {[%clk
0:00:19.2]} 43... Be8 {[%clk 0:00:17.2]} 44. Qh2 {[%clk 0:00:14.5]} 44... Nf7
{[%clk 0:00:15.6]} 45. Qh7 {[%clk 0:00:12.3]} 45... Kd8 {[%clk 0:00:16.2]} 46.
Kb3 {[%clk 0:00:11.5]} 46... Ne5 {[%clk 0:00:16.5]} 47. Qxe7+ {[%clk 0:00:10.9]}
47... Kxe7 {[%clk 0:00:17.3]} 48. Be2 {[%clk 0:00:10.6]} 48... Bg6 {[%clk
0:00:17.4]} 49. Bxe5 {[%clk 0:00:04.4]} 49... fxe5 {[%clk 0:00:17.6]} 50. Bd3
{[%clk 0:00:03.8]} 50... Kf6 {[%clk 0:00:17.8]} 51. Kc2 {[%clk 0:00:02.6]} 51...
Kg5 {[%clk 0:00:17.9]} 52. Kd2 {[%clk 0:00:03.1]} 52... Kf4 {[%clk 0:00:17.9]}
53. Be2 {[%clk 0:00:02.6]} 53... Bxe4 {[%clk 0:00:18]} 54. Kc1 {[%clk
0:00:02.5]} 54... Bf3 {[%clk 0:00:18.1]} 55. Bd3 {[%clk 0:00:02.5]} 55... Ke3
{[%clk 0:00:18]} 56. Bf5 {[%clk 0:00:02.1]} 56... Be2 {[%clk 0:00:18]} 0-1

[Event "Early-Titled-Tuesday-Blitz-December-26-2023"]
[Site "Chess.com"]
[Date "2023.12.26"]
[Round "4"]
[White "bescmelasti"]
[Black "ilya2700"]
[Result "1-0"]
[WhiteElo "2652"]
[BlackElo "2342"]
[TimeControl "180+1"]
[EndTime "8:39:08 PST"]
[Termination "bescmelasti won on time"]

1. c4 {[%clk 0:03:00.9]} 1... c5 {[%clk 0:02:57.9]} 2. Nc3 {[%clk 0:03:01.4]}
2... e6 {[%clk 0:02:57.9]} 3. Nf3 {[%clk 0:03:01]} 3... Nf6 {[%clk 0:02:57.3]}
4. g3 {[%clk 0:03:01]} 4... d5 {[%clk 0:02:57.4]} 5. cxd5 {[%clk 0:02:59.2]}
5... exd5 {[%clk 0:02:58.3]} 6. d4 {[%clk 0:02:59.3]} 6... Nc6 {[%clk
0:02:57.9]} 7. Bg2 {[%clk 0:02:58.5]} 7... Bd6 {[%clk 0:02:57.1]} 8. O-O {[%clk
0:02:53.8]} 8... O-O {[%clk 0:02:57.1]} 9. Bg5 {[%clk 0:02:31]} 9... Be6 {[%clk
0:02:56.1]} 10. e4 {[%clk 0:02:31.6]} 10... dxe4 {[%clk 0:02:15.6]} 11. Nxe4
{[%clk 0:02:30.2]} 11... Be7 {[%clk 0:02:15.6]} 12. Nxc5 {[%clk 0:01:55.4]}
12... Nxd4 {[%clk 0:02:01.7]} 13. Nxe6 {[%clk 0:01:08.3]} 13... Nxe6 {[%clk
0:02:02.6]} 14. Be3 {[%clk 0:01:04.7]} 14... Bc5 {[%clk 0:01:53.8]} 15. Re1
{[%clk 0:01:00.3]} 15... Bxe3 {[%clk 0:01:51.9]} 16. Rxe3 {[%clk 0:01:01.2]}
16... Qb6 {[%clk 0:01:52.2]} 17. Rb3 {[%clk 0:01:00.2]} 17... Qc7 {[%clk
0:01:31.8]} 18. Rc1 {[%clk 0:00:59.7]} 18... Rfd8 {[%clk 0:01:28.2]} 19. Qe1
{[%clk 0:00:53.1]} 19... Qe7 {[%clk 0:01:15.3]} 20. Ng5 {[%clk 0:00:52.7]} 20...
Rab8 {[%clk 0:01:10.4]} 21. Nxe6 {[%clk 0:00:51.9]} 21... fxe6 {[%clk
0:01:08.2]} 22. Re3 {[%clk 0:00:43.2]} 22... Rd6 {[%clk 0:01:05.7]} 23. Bh3
{[%clk 0:00:43.4]} 23... Re8 {[%clk 0:01:00.1]} 24. Qe2 {[%clk 0:00:38.7]} 24...
e5 {[%clk 0:00:49.6]} 25. Re1 {[%clk 0:00:32.7]} 25... e4 {[%clk 0:00:31.8]} 26.
Bg2 {[%clk 0:00:32.3]} 26... Red8 {[%clk 0:00:30.2]} 27. Bxe4 {[%clk 0:00:30]}
27... Nxe4 {[%clk 0:00:21.2]} 28. Rxe4 {[%clk 0:00:30.9]} 28... Qf6 {[%clk
0:00:21.5]} 29. Qc4+ {[%clk 0:00:26.7]} 29... Rd5 {[%clk 0:00:14.4]} 30. Re8+
{[%clk 0:00:13.2]} 30... Rxe8 {[%clk 0:00:10.5]} 31. Qxd5+ {[%clk 0:00:11.1]}
31... Kf8 {[%clk 0:00:09.6]} 32. Rxe8+ {[%clk 0:00:10.9]} 32... Kxe8 {[%clk
0:00:10.5]} 33. Qxb7 {[%clk 0:00:11.8]} 33... Qd4 {[%clk 0:00:08.1]} 34. Kg2
{[%clk 0:00:11.3]} 34... g5 {[%clk 0:00:07.4]} 35. a3 {[%clk 0:00:11.2]} 35...
g4 {[%clk 0:00:07.2]} 36. b4 {[%clk 0:00:03.9]} 36... a6 {[%clk 0:00:07]} 37. a4
{[%clk 0:00:03.7]} 37... h5 {[%clk 0:00:05.1]} 38. b5 {[%clk 0:00:04]} 38...
axb5 {[%clk 0:00:06]} 39. axb5 {[%clk 0:00:04.8]} 39... Kd8 {[%clk 0:00:05.8]}
40. b6 {[%clk 0:00:05]} 40... Ke8 {[%clk 0:00:02.6]} 41. Qc6+ {[%clk 0:00:05.1]}
41... Kd8 {[%clk 0:00:02.6]} 42. b7 {[%clk 0:00:05.5]} 42... Qb4 {[%clk
0:00:01.1]} 43. Qf6+ {[%clk 0:00:02.7]} 1-0

[Event "Early-Titled-Tuesday-Blitz-December-26-2023"]
[Site "Chess.com"]
[Date "2023.12.26"]
[Round "4"]
[White "SCIM"]
[Black "Andrei_Skvortsov"]
[Result "1-0"]
[WhiteElo "2512"]
[BlackElo "2669"]
[TimeControl "180+1"]
[EndTime "8:39:12 PST"]
[Termination "SCIM won by resignation"]

1. d4 {[%clk 0:03:00.9]} 1... d5 {[%clk 0:02:59.1]} 2. c4 {[%clk 0:03:01]} 2...
c6 {[%clk 0:02:59.6]} 3. Nf3 {[%clk 0:03:00.9]} 3... Nf6 {[%clk 0:03:00.1]} 4.
g3 {[%clk 0:03:00.7]} 4... dxc4 {[%clk 0:02:58.5]} 5. Bg2 {[%clk 0:02:58.8]}
5... b5 {[%clk 0:02:58.3]} 6. O-O {[%clk 0:02:59.1]} 6... Bb7 {[%clk 0:02:57.1]}
7. b3 {[%clk 0:02:59]} 7... cxb3 {[%clk 0:02:54.3]} 8. axb3 {[%clk 0:02:59.9]}
8... Qb6 {[%clk 0:02:53.2]} 9. Nc3 {[%clk 0:02:58.7]} 9... a5 {[%clk 0:02:47.5]}
10. Bg5 {[%clk 0:02:55.6]} 10... Nbd7 {[%clk 0:02:46.5]} 11. e4 {[%clk
0:02:52.1]} 11... e6 {[%clk 0:02:45.7]} 12. e5 {[%clk 0:02:50.8]} 12... Nd5
{[%clk 0:02:45.5]} 13. Nxd5 {[%clk 0:02:51.1]} 13... cxd5 {[%clk 0:02:43.1]} 14.
Be3 {[%clk 0:02:44.1]} 14... Bb4 {[%clk 0:02:41.2]} 15. Ng5 {[%clk 0:02:38.7]}
15... h6 {[%clk 0:02:37]} 16. Qh5 {[%clk 0:02:31]} 16... g6 {[%clk 0:02:36.2]}
17. Qh4 {[%clk 0:02:24.7]} 17... Be7 {[%clk 0:02:36.6]} 18. Qh3 {[%clk
0:02:15.7]} 18... Nb8 {[%clk 0:02:21.4]} 19. Nf3 {[%clk 0:02:00]} 19... Nc6
{[%clk 0:02:20.7]} 20. Rfd1 {[%clk 0:01:57.9]} 20... Kd7 {[%clk 0:02:08.1]} 21.
Ne1 {[%clk 0:01:51.6]} 21... Nb4 {[%clk 0:02:06.8]} 22. Qg4 {[%clk 0:01:43.5]}
22... Rac8 {[%clk 0:01:57.2]} 23. Qf3 {[%clk 0:01:41.5]} 23... Rh7 {[%clk
0:01:57.4]} 24. Bf1 {[%clk 0:01:41]} 24... Kc7 {[%clk 0:01:52.8]} 25. h4 {[%clk
0:01:39]} 25... h5 {[%clk 0:01:50.5]} 26. Nd3 {[%clk 0:01:18.1]} 26... Kb8
{[%clk 0:01:42.1]} 27. Nc5 {[%clk 0:01:14.9]} 27... Bc6 {[%clk 0:01:14.8]} 28.
Rdc1 {[%clk 0:01:12.2]} 28... Be8 {[%clk 0:01:13.5]} 29. Qd1 {[%clk 0:01:07.8]}
29... Na6 {[%clk 0:01:03.4]} 30. Nxa6+ {[%clk 0:01:01.6]} 30... Qxa6 {[%clk
0:01:04.3]} 31. Rxc8+ {[%clk 0:01:01.1]} 31... Kxc8 {[%clk 0:01:03.1]} 32. Qd2
{[%clk 0:01:00.8]} 32... Bd8 {[%clk 0:00:58.2]} 33. Qc2+ {[%clk 0:00:54.2]}
33... Kb8 {[%clk 0:00:52.6]} 34. Bd2 {[%clk 0:00:52.3]} 34... Qa7 {[%clk
0:00:50.8]} 35. Qd3 {[%clk 0:00:34.3]} 35... Bd7 {[%clk 0:00:40]} 36. Bxa5
{[%clk 0:00:33.6]} 36... Bxa5 {[%clk 0:00:39.7]} 37. b4 {[%clk 0:00:34.1]} 37...
Bxb4 {[%clk 0:00:14.5]} 38. Rxa7 {[%clk 0:00:32.4]} 38... Kxa7 {[%clk
0:00:15.4]} 39. Qb3 {[%clk 0:00:32.1]} 39... Be7 {[%clk 0:00:13.4]} 40. Bxb5
{[%clk 0:00:31.9]} 40... Bxb5 {[%clk 0:00:12]} 41. Qxb5 {[%clk 0:00:32.8]} 41...
f5 {[%clk 0:00:10.7]} 42. Qd7+ {[%clk 0:00:28.2]} 42... Kb8 {[%clk 0:00:10.5]}
43. Qxe6 {[%clk 0:00:26.7]} 43... Rg7 {[%clk 0:00:11]} 44. Qxd5 {[%clk
0:00:24.6]} 44... f4 {[%clk 0:00:11.6]} 45. gxf4 {[%clk 0:00:20.1]} 45... Bxh4
{[%clk 0:00:09.6]} 46. Qe6 {[%clk 0:00:20.6]} 46... Bd8 {[%clk 0:00:06.2]} 47.
Qd6+ {[%clk 0:00:18.2]} 47... Kc8 {[%clk 0:00:06.3]} 48. Qe6+ {[%clk 0:00:18.3]}
48... Kc7 {[%clk 0:00:05.7]} 49. d5 {[%clk 0:00:18.5]} 49... h4 {[%clk
0:00:05.6]} 50. Qc6+ {[%clk 0:00:18.4]} 50... Kb8 {[%clk 0:00:05.5]} 51. d6
{[%clk 0:00:17.8]} 51... Rf7 {[%clk 0:00:01.6]} 52. e6 {[%clk 0:00:16.6]} 52...
Rxf4 {[%clk 0:00:01.9]} 53. Qb5+ {[%clk 0:00:15.8]} 53... Kc8 {[%clk 0:00:01.7]}
54. Qd7+ {[%clk 0:00:15.2]} 54... Kb8 {[%clk 0:00:02.1]} 55. Qxd8+ {[%clk
0:00:15.9]} 1-0

[Event "Early-Titled-Tuesday-Blitz-December-26-2023"]
[Site "Chess.com"]
[Date "2023.12.26"]
[Round "4"]
[White "YouJustFoundYourGodfather"]
[Black "artin10862"]
[Result "0-1"]
[WhiteElo "2620"]
[BlackElo "2926"]
[TimeControl "180+1"]
[EndTime "8:39:15 PST"]
[Termination "artin10862 won by checkmate"]

1. c4 {[%clk 0:03:00.9]} 1... c6 {[%clk 0:02:51.7]} 2. e3 {[%clk 0:02:53.7]}
2... e5 {[%clk 0:02:48.2]} 3. Nf3 {[%clk 0:02:54.6]} 3... e4 {[%clk 0:02:40.9]}
4. Nd4 {[%clk 0:02:53.8]} 4... Nf6 {[%clk 0:02:41.4]} 5. Nc3 {[%clk 0:02:54.3]}
5... g6 {[%clk 0:02:36.3]} 6. Qc2 {[%clk 0:02:50.6]} 6... Qe7 {[%clk 0:02:36]}
7. d3 {[%clk 0:02:42.5]} 7... exd3 {[%clk 0:02:35.8]} 8. Bxd3 {[%clk 0:02:43.4]}
8... Bg7 {[%clk 0:02:36.3]} 9. O-O {[%clk 0:02:43.6]} 9... O-O {[%clk
0:02:36.9]} 10. b3 {[%clk 0:02:43.8]} 10... Rd8 {[%clk 0:02:32.4]} 11. Bb2
{[%clk 0:02:37.7]} 11... Na6 {[%clk 0:02:32]} 12. a3 {[%clk 0:02:36]} 12... Nc5
{[%clk 0:02:31.6]} 13. Be2 {[%clk 0:02:36.6]} 13... d6 {[%clk 0:02:17.1]} 14.
Rad1 {[%clk 0:02:29]} 14... h5 {[%clk 0:02:16.5]} 15. h3 {[%clk 0:02:27.8]}
15... Ne6 {[%clk 0:02:01]} 16. Nf3 {[%clk 0:02:20.9]} 16... Nc5 {[%clk
0:01:59.7]} 17. b4 {[%clk 0:02:04.6]} 17... Bf5 {[%clk 0:01:58.3]} 18. Qd2
{[%clk 0:02:00.5]} 18... Nb3 {[%clk 0:01:11.9]} 19. Qe1 {[%clk 0:02:00]} 19...
a5 {[%clk 0:01:11.7]} 20. Bd3 {[%clk 0:01:49.7]} 20... Bxd3 {[%clk 0:01:10.8]}
21. Rxd3 {[%clk 0:01:49.3]} 21... Qe6 {[%clk 0:01:08.2]} 22. Ne2 {[%clk
0:01:31]} 22... a4 {[%clk 0:00:56.3]} 23. Nfd4 {[%clk 0:00:45.1]} 23... Qxc4
{[%clk 0:00:30.4]} 24. Rc3 {[%clk 0:00:41.7]} 24... Qd5 {[%clk 0:00:28.6]} 25.
Nf4 {[%clk 0:00:41.2]} 25... Qe4 {[%clk 0:00:28.8]} 26. Nxb3 {[%clk 0:00:39.9]}
26... axb3 {[%clk 0:00:28.9]} 27. Rxb3 {[%clk 0:00:38.9]} 27... d5 {[%clk
0:00:25.5]} 28. Qa1 {[%clk 0:00:32]} 28... Qe7 {[%clk 0:00:25.7]} 29. Rd1 {[%clk
0:00:26.5]} 29... Ne8 {[%clk 0:00:25.4]} 30. Rbd3 {[%clk 0:00:21.4]} 30... Bxb2
{[%clk 0:00:23]} 31. Qxb2 {[%clk 0:00:22.3]} 31... Nd6 {[%clk 0:00:23.3]} 32.
Qb3 {[%clk 0:00:18.3]} 32... b5 {[%clk 0:00:15.2]} 33. Ne2 {[%clk 0:00:14.2]}
33... Nc4 {[%clk 0:00:15.3]} 34. Qa2 {[%clk 0:00:06.5]} 34... Qxb4 {[%clk
0:00:06.9]} 35. Nd4 {[%clk 0:00:07.1]} 35... Qd6 {[%clk 0:00:05.8]} 36. Rc3
{[%clk 0:00:04.1]} 36... Ra4 {[%clk 0:00:06.1]} 37. Qc2 {[%clk 0:00:02.4]} 37...
Rda8 {[%clk 0:00:06]} 38. e4 {[%clk 0:00:02.5]} 38... Rxa3 {[%clk 0:00:06]} 39.
exd5 {[%clk 0:00:02.5]} 39... Qxd5 {[%clk 0:00:05]} 40. Nxb5 {[%clk 0:00:01.5]}
40... Qxb5 {[%clk 0:00:03.7]} 41. Rxc4 {[%clk 0:00:01.7]} 41... Ra2 {[%clk
0:00:04.2]} 42. Qc3 {[%clk 0:00:02.3]} 42... Qb6 {[%clk 0:00:03.8]} 43. Rxc6
{[%clk 0:00:02.1]} 43... Qxf2+ {[%clk 0:00:03.4]} 44. Kh1 {[%clk 0:00:01.1]}
44... Qxg2# {[%clk 0:00:04.3]} 0-1

[Event "Early-Titled-Tuesday-Blitz-December-26-2023"]
[Site "Chess.com"]
[Date "2023.12.26"]
[Round "4"]
[White "nitpicker"]
[Black "SARGISMV"]
[Result "0-1"]
[WhiteElo "2308"]
[BlackElo "2520"]
[TimeControl "180+1"]
[EndTime "8:39:15 PST"]
[Termination "SARGISMV won on time"]

1. d4 {[%clk 0:03:00.9]} 1... Nf6 {[%clk 0:02:43.5]} 2. c4 {[%clk 0:03:00.6]}
2... c5 {[%clk 0:02:43.3]} 3. d5 {[%clk 0:03:00.2]} 3... e6 {[%clk 0:02:43.9]}
4. Nc3 {[%clk 0:02:58.9]} 4... exd5 {[%clk 0:02:44.4]} 5. cxd5 {[%clk
0:02:59.6]} 5... Bd6 {[%clk 0:02:43.1]} 6. e4 {[%clk 0:02:51.8]} 6... O-O {[%clk
0:02:42.7]} 7. Bd3 {[%clk 0:02:43.6]} 7... Re8 {[%clk 0:02:42.2]} 8. Nge2 {[%clk
0:02:41.3]} 8... a6 {[%clk 0:02:42.4]} 9. a4 {[%clk 0:02:40.1]} 9... Bc7 {[%clk
0:02:43]} 10. Bg5 {[%clk 0:02:38.5]} 10... d6 {[%clk 0:02:42.9]} 11. O-O {[%clk
0:02:37.2]} 11... Nbd7 {[%clk 0:02:43.4]} 12. f4 {[%clk 0:02:33.6]} 12... Rb8
{[%clk 0:02:36.1]} 13. Kh1 {[%clk 0:02:25.6]} 13... Ba5 {[%clk 0:02:29.1]} 14.
Qc2 {[%clk 0:02:08.5]} 14... h6 {[%clk 0:02:16.2]} 15. Bh4 {[%clk 0:02:06.7]}
15... Qc7 {[%clk 0:02:15.4]} 16. b3 {[%clk 0:01:54.3]} 16... Ng4 {[%clk
0:01:49.6]} 17. Rf3 {[%clk 0:01:41.9]} 17... c4 {[%clk 0:01:26.3]} 18. Bxc4
{[%clk 0:01:26]} 18... b5 {[%clk 0:01:17.8]} 19. axb5 {[%clk 0:01:20.3]} 19...
axb5 {[%clk 0:01:17.5]} 20. Bd3 {[%clk 0:00:58.3]} 20... b4 {[%clk 0:01:00.7]}
21. Nd1 {[%clk 0:00:47.3]} 21... Qxc2 {[%clk 0:00:45.5]} 22. Bxc2 {[%clk
0:00:47.4]} 22... Bb6 {[%clk 0:00:46.2]} 23. Be1 {[%clk 0:00:26.9]} 23... Bc5
{[%clk 0:00:39.3]} 24. h3 {[%clk 0:00:20.5]} 24... Ngf6 {[%clk 0:00:38.8]} 25.
Ng3 {[%clk 0:00:20.9]} 25... Bd4 {[%clk 0:00:32.3]} 26. Rc1 {[%clk 0:00:18.4]}
26... Nc5 {[%clk 0:00:32.7]} 27. Bf2 {[%clk 0:00:17]} 27... Bxf2 {[%clk
0:00:26.6]} 28. Nxf2 {[%clk 0:00:17.1]} 28... Ba6 {[%clk 0:00:24.8]} 29. Nf5
{[%clk 0:00:14.8]} 29... Nfxe4 {[%clk 0:00:16.2]} 30. Nxe4 {[%clk 0:00:13.5]}
30... Nxe4 {[%clk 0:00:17.1]} 31. Bxe4 {[%clk 0:00:13.4]} 31... Rxe4 {[%clk
0:00:18]} 32. Nxd6 {[%clk 0:00:13.7]} 32... Rd4 {[%clk 0:00:17.5]} 33. Rc6
{[%clk 0:00:11.9]} 33... Bd3 {[%clk 0:00:16.5]} 34. Nf5 {[%clk 0:00:10.9]} 34...
Bxf5 {[%clk 0:00:16.5]} 35. d6 {[%clk 0:00:10.7]} 35... Rd8 {[%clk 0:00:15.9]}
36. Re3 {[%clk 0:00:10.5]} 36... R8xd6 {[%clk 0:00:15.2]} 37. Re8+ {[%clk
0:00:10.2]} 37... Kh7 {[%clk 0:00:15]} 38. Rc7 {[%clk 0:00:11]} 38... Rd1+
{[%clk 0:00:14]} 39. Kh2 {[%clk 0:00:10.4]} 39... Be6 {[%clk 0:00:14.6]} 40.
Ree7 {[%clk 0:00:09.9]} 40... Bxb3 {[%clk 0:00:14.2]} 41. f5 {[%clk 0:00:09.7]}
41... Rf6 {[%clk 0:00:12.1]} 42. g4 {[%clk 0:00:09.2]} 42... Rd2+ {[%clk
0:00:12.1]} 43. Kg3 {[%clk 0:00:09.4]} 43... Rd3+ {[%clk 0:00:12.5]} 44. Kf4
{[%clk 0:00:09.7]} 44... Rfd6 {[%clk 0:00:12]} 45. Re8 {[%clk 0:00:09]} 45...
R6d4+ {[%clk 0:00:12]} 46. Ke5 {[%clk 0:00:07.9]} 46... Re3+ {[%clk 0:00:12.3]}
47. Kxd4 {[%clk 0:00:07.7]} 47... Rxe8 {[%clk 0:00:13.2]} 48. Rb7 {[%clk
0:00:07.6]} 48... Rd8+ {[%clk 0:00:12.3]} 49. Ke5 {[%clk 0:00:07.1]} 49... Bd5
{[%clk 0:00:12.2]} 50. Rb5 {[%clk 0:00:05.1]} 50... f6+ {[%clk 0:00:12.1]} 51.
Kf4 {[%clk 0:00:04.1]} 51... b3 {[%clk 0:00:12.1]} 52. h4 {[%clk 0:00:04]} 52...
Bf7 {[%clk 0:00:11.6]} 53. g5 {[%clk 0:00:04]} 53... hxg5+ {[%clk 0:00:11.8]}
54. hxg5 {[%clk 0:00:03.9]} 54... fxg5+ {[%clk 0:00:11.9]} 55. Kxg5 {[%clk
0:00:04.1]} 55... Rd5 {[%clk 0:00:11.8]} 56. Rb7 {[%clk 0:00:03.6]} 56... Bg6
{[%clk 0:00:10.4]} 0-1

[Event "Early-Titled-Tuesday-Blitz-December-26-2023"]
[Site "Chess.com"]
[Date "2023.12.26"]
[Round "4"]
[White "Zavgorodniy_Sergiy"]
[Black "snowlord"]
[Result "1-0"]
[WhiteElo "2624"]
[BlackElo "2908"]
[TimeControl "180+1"]
[EndTime "8:39:17 PST"]
[Termination "Zavgorodniy_Sergiy won by resignation"]

1. d4 {[%clk 0:03:00.9]} 1... Nf6 {[%clk 0:02:56.7]} 2. c4 {[%clk 0:03:01.1]}
2... e6 {[%clk 0:02:55]} 3. Nf3 {[%clk 0:03:01.4]} 3... Bb4+ {[%clk 0:02:54.5]}
4. Nbd2 {[%clk 0:03:01.4]} 4... O-O {[%clk 0:02:53.6]} 5. g3 {[%clk 0:03:01.6]}
5... b6 {[%clk 0:02:52.8]} 6. Bg2 {[%clk 0:03:01.7]} 6... Bb7 {[%clk 0:02:53.4]}
7. O-O {[%clk 0:03:01.7]} 7... a5 {[%clk 0:02:54]} 8. b3 {[%clk 0:03:01.3]} 8...
a4 {[%clk 0:02:26.2]} 9. Rb1 {[%clk 0:02:54.8]} 9... axb3 {[%clk 0:02:24.6]} 10.
axb3 {[%clk 0:02:55.7]} 10... Nc6 {[%clk 0:02:05.6]} 11. Bb2 {[%clk 0:02:54.1]}
11... Ne7 {[%clk 0:01:55.5]} 12. Qc2 {[%clk 0:02:53.1]} 12... Bxd2 {[%clk
0:01:55]} 13. Nxd2 {[%clk 0:02:50.2]} 13... Bxg2 {[%clk 0:01:55.9]} 14. Kxg2
{[%clk 0:02:50.9]} 14... d5 {[%clk 0:01:55.5]} 15. Ra1 {[%clk 0:02:44.6]} 15...
Qd7 {[%clk 0:01:53.2]} 16. Nf3 {[%clk 0:02:39.1]} 16... dxc4 {[%clk 0:01:45.3]}
17. Qxc4 {[%clk 0:02:20.6]} 17... c6 {[%clk 0:01:39.1]} 18. Ba3 {[%clk
0:02:07.4]} 18... Rfc8 {[%clk 0:01:09.3]} 19. Bxe7 {[%clk 0:02:02.6]} 19... Rxa1
{[%clk 0:01:09.2]} 20. Rxa1 {[%clk 0:01:56.1]} 20... Qxe7 {[%clk 0:01:09.3]} 21.
Qa6 {[%clk 0:01:44.6]} 21... Qc7 {[%clk 0:01:04.6]} 22. Rc1 {[%clk 0:01:40.9]}
22... g6 {[%clk 0:00:58.8]} 23. Ne5 {[%clk 0:01:34.1]} 23... c5 {[%clk
0:00:57.6]} 24. dxc5 {[%clk 0:01:22.3]} 24... bxc5 {[%clk 0:00:54.8]} 25. Nd3
{[%clk 0:01:21.8]} 25... Nd7 {[%clk 0:00:48.8]} 26. Rc4 {[%clk 0:01:12.4]} 26...
Qd8 {[%clk 0:00:29.7]} 27. Qd6 {[%clk 0:01:03.9]} 27... Kg7 {[%clk 0:00:11]} 28.
Nxc5 {[%clk 0:00:54]} 28... Nxc5 {[%clk 0:00:11.9]} 29. Qxd8 {[%clk 0:00:52.4]}
29... Rxd8 {[%clk 0:00:12.8]} 30. Rxc5 {[%clk 0:00:52.8]} 30... Rd2 {[%clk
0:00:13.3]} 31. Kf3 {[%clk 0:00:50.5]} 31... Rb2 {[%clk 0:00:13.7]} 32. Rb5
{[%clk 0:00:44.5]} 32... h5 {[%clk 0:00:14.3]} 33. h4 {[%clk 0:00:44.4]} 33...
Kf6 {[%clk 0:00:14.7]} 34. Rb7 {[%clk 0:00:44.2]} 34... e5 {[%clk 0:00:10.7]}
35. Ke3 {[%clk 0:00:40.5]} 35... Ke6 {[%clk 0:00:10.8]} 36. b4 {[%clk
0:00:40.4]} 36... Rb3+ {[%clk 0:00:09.7]} 37. Kd2 {[%clk 0:00:37.4]} 37... Rb2+
{[%clk 0:00:10.2]} 38. Kd3 {[%clk 0:00:37.9]} 38... f6 {[%clk 0:00:08.4]} 39.
Rb6+ {[%clk 0:00:36.9]} 39... Ke7 {[%clk 0:00:06.4]} 40. f3 {[%clk 0:00:34.5]}
40... g5 {[%clk 0:00:04.5]} 41. hxg5 {[%clk 0:00:29.5]} 41... fxg5 {[%clk
0:00:05.4]} 42. Rh6 {[%clk 0:00:27.5]} 42... Rxb4 {[%clk 0:00:05.3]} 43. Rxh5
{[%clk 0:00:27.6]} 43... Kf6 {[%clk 0:00:04.1]} 44. Rh6+ {[%clk 0:00:27.7]}
44... Kf7 {[%clk 0:00:04.5]} 45. Rc6 {[%clk 0:00:25.4]} 45... g4 {[%clk
0:00:01.6]} 46. Rc4 {[%clk 0:00:22.5]} 46... Rb3+ {[%clk 0:00:02.1]} 47. Ke4
{[%clk 0:00:22.1]} 47... gxf3 {[%clk 0:00:02]} 48. exf3 {[%clk 0:00:23]} 48...
Ke6 {[%clk 0:00:01.5]} 49. Rc6+ {[%clk 0:00:22.9]} 49... Kd7 {[%clk 0:00:01.9]}
50. Rc4 {[%clk 0:00:21.4]} 50... Kd6 {[%clk 0:00:01.8]} 51. Ra4 {[%clk
0:00:21.4]} 51... Rc3 {[%clk 0:00:01.7]} 52. g4 {[%clk 0:00:21.5]} 52... Rc1
{[%clk 0:00:01.6]} 53. Ra6+ {[%clk 0:00:21.3]} 53... Ke7 {[%clk 0:00:02]} 54.
Kxe5 {[%clk 0:00:21.3]} 54... Re1+ {[%clk 0:00:02.3]} 55. Kf4 {[%clk 0:00:21.7]}
55... Rf1 {[%clk 0:00:02.4]} 56. g5 {[%clk 0:00:21.8]} 56... Kf7 {[%clk
0:00:03.3]} 57. Ra7+ {[%clk 0:00:21.2]} 57... Kg6 {[%clk 0:00:03.3]} 58. Ra6+
{[%clk 0:00:21.8]} 58... Kg7 {[%clk 0:00:03.9]} 59. Kg4 {[%clk 0:00:22.1]} 59...
Rg1+ {[%clk 0:00:03.1]} 60. Kf5 {[%clk 0:00:22.2]} 60... Rb1 {[%clk 0:00:04]}
61. Ra7+ {[%clk 0:00:22.1]} 1-0